Cogmind - Beta 13 @@@ ROGUE MODE // 2024.06.28 @ 14:06:06 Player: JackZewap Result: Destroyed by X-67 Chaingunner with Heavy Machine Gun Performance ------------- Evolutions (3) 1500 Regions Visited (5) 1000 Robots Destroyed (130) 650 Value Destroyed (3307) 3307 Prototype IDs (12) 240 Alien Tech Used (0) 0 Bonus (245) 245 TOTAL SCORE: 6942 Bonus ------- High Alert Combat Kills 245 Cogmind --------- Core Integrity 0/700 Matter 60/300 Energy 150/150 System Corruption 5% Temperature Cool (0) Movement Core (300) Ox5 Location -7/Factory Parts ------- > --- POWER (1) -------- Micro Nuclear Core > --- PROPULSION (2) --- (None) > --- UTILITY (8) ------ Improved Cooling System Improved Terrain Scanner (fused) Advanced Terrain Scan Processor Improved Targeting Computer > --- WEAPON (2) ------- Precision Assault Rifle Precision Assault Rifle > --- INVENTORY (5) ---- Improved Sensor Array Precision Assault Rifle Remote Datajack Peak State ------------ > --- POWER ------------ Micro Nuclear Core > --- PROPULSION ------- Gravmag System Gravmag System > --- UTILITY ---------- Gravity Neutralizer Improved Terrain Scanner Advanced Terrain Scan Processor Improved Targeting Computer Improved Targeting Computer Heavy Armor Plating Hacking Suite > --- WEAPON ----------- Flak Cannon Advanced Assault Cannon > --- INVENTORY -------- Improved Deuterium Engine Cryofiber Web Improved Cooling System Improved Sensor Array Remote Datajack [Rating: 46] Favorites ----------- Power Ion Engine Engine Ion Engine Power Core Micro Nuclear Core Propulsion Light Treads Treads Light Treads Leg Aluminum Leg Wheel Compact Wheel Hover Unit Gravmag System Flight Unit Cesium-ion Thruster Utility Hacking Suite Device Gravity Neutralizer Storage Small Storage Unit Processor Targeting Computer Hackware Hacking Suite Protection Heavy Armor Plating Weapon Improved Medium Laser Energy Gun Improved Medium Laser Ballistic Gun Heavy Assault Rifle Ballistic Cannon Advanced Assault Cannon Special Weapon Plasma Cutter Slashing Weapon Axe Special Melee Weapon Datajack Build | -11 -10 -9 -9 -9 -7 ------- Run | Yrd Mat Mat Sto Rec Fac Slots Evolved 6 | . . 2 . . 4 Power . | . . . . . . Propulsion . | . . . . . . Utility 6 | . . 2 . . 4 Weapon . | . . . . . . Parts Attached 167 | 5 29 50 28 1 54 Power 18 | 1 3 6 1 1 6 Engine 13 | 1 3 6 . 1 2 Core 5 | . . . 1 . 4 Reactor . | . . . . . . Propulsion 42 | 2 9 12 4 . 15 Treads 14 | . 1 8 . . 5 Leg 2 | . 2 . . . . Wheel 2 | 2 . . . . . Hover 4 | . 2 . . . 2 Flight 20 | . 4 4 4 . 8 Utility 40 | . 7 10 4 . 19 Device 16 | . 3 3 3 . 7 Storage 1 | . 1 . . . . Processor 15 | . 1 6 1 . 7 Hackware 3 | . 2 . . . 1 Protection 5 | . . 1 . . 4 Artifact . | . . . . . . Weapon 67 | 2 10 22 19 . 14 Energy Gun 19 | 1 3 7 6 . 2 Energy Cannon . | . . . . . . Ballistic Gun 21 | 1 4 10 . . 6 Ballistic Cannon 4 | . . . . . 4 Launcher . | . . . . . . Special Weapon 4 | . 2 . 2 . . Impact Weapon . | . . . . . . Slashing Weapon 7 | . . 1 4 . 2 Piercing Weapon . | . . . . . . Special Melee Weapon 12 | . 1 4 7 . . Unidentified Prototypes 7 | . . 2 2 . 3 Parts Lost 33 | . 3 4 4 1 21 Power 3 | . . . . 1 2 Propulsion 13 | . 2 1 1 . 9 Utility 11 | . . 3 . . 8 Weapon 6 | . 1 . 3 . 2 Highest Loss Streak 6 | . 1 1 1 1 6 To Critical Strikes . | . . . . . . Average Slot Usage (%) 90 | . 88 93 95 94 88 Engine 6 | . 13 8 5 1 1 Core 2 | . . . 5 4 3 Treads 6 | . 2 15 . . 5 Leg 1 | . 5 . . . . Hover 1 | . 3 . . . 1 Flight 9 | . 10 6 20 22 5 Device 12 | . 9 3 21 22 15 Processor 22 | . 3 24 22 22 31 Hackware 6 | . 6 12 . . 5 Energy Gun 6 | . 9 11 7 . . Ballistic Gun 7 | . 12 9 . . 6 Special Weapon 1 | . 1 . 1 11 1 Slashing Weapon 1 | . . . 6 11 2 Special Melee Weapon 1 | . 3 . 3 . . Naked Turns . | . . . . . . Heaviest Build 44 | 8 15 18 15 10 44 Greatest Support 52 | 26 26 40 22 22 52 Greatest Overweight (x) 5 | . 3 5 . . 3 Average Overweight (x) . | . . . . . . Largest Inventory Capacity 8 | 5 8 5 5 5 5 Average Capacity 5 | 5 5 5 5 5 5 Most Carried 7 | 2 7 5 5 4 5 Average Carried 4 | 1 4 4 4 4 4 Final Capacity 5 | 5 5 5 5 5 5 Final Carried 5 | 2 5 5 4 4 3 Class Distribution -------------------- 39% | Scavenger-Mutant 32% | Mutant 13% | Sprinter 8% | Hacker-Mutant 5% | Scavenger-Sprinter Dominant Class ---------------- Mutant | -10/Materials Scavenger-Mutant | -9/Materials Mutant | -9/Storage Mutant | -9/Recycling Scavenger-Mutant | -7/Factory Resources | -11 -10 -9 -9 -9 -7 ----------- Run | Yrd Mat Mat Sto Rec Fac Matter Collected 2609 | 180 528 767 301 10 823 Remotely . | . . . . . . Salvage Created 4944 | . 753 1311 1200 332 1348 Parts 294 | . 52 88 66 12 76 Haulers Intercepted 15 | . 2 5 6 . 2 Recyclers Shooed 3 | . 2 . 1 . . Parts Field Recycled . | . . . . . . Retrieved Matter . | . . . . . . Parts Self-Destructed . | . . . . . . Prevented . | . . . . . . Kills | -11 -10 -9 -9 -9 -7 ------- Run | Yrd Mat Mat Sto Rec Fac Combat Hostiles Destroyed 83 | . 17 28 16 3 19 Melee 10 | . . . 6 3 1 Guns 68 | . 17 28 10 . 13 Cannons 5 | . . . . . 5 Classes Destroyed 14 | . 7 4 . . 3 Worker 4 | . 1 1 . . 2 Builder 5 | . 1 . . . 4 Hauler 15 | . 2 5 6 . 2 Recycler 7 | . 1 . 1 2 3 Mechanic 1 | . . 1 . . . Operator 7 | . 3 1 2 . 1 Watcher 8 | . . 4 2 . 2 Swarmer 22 | . 6 13 . . 3 Grunt 31 | . 11 6 9 . 5 Duelist 2 | . . 1 1 . . Protector 1 | . . . . . 1 Sentry 22 | . . 8 6 3 5 Specialist 3 | . . . . . 3 Programmer 2 | . . . . . 2 Best Kill Streak 12 | . 12 6 7 2 8 Combat Bots Only 10 | . 10 5 5 2 7 Max Kills in Single Turn 3 | . 1 2 1 1 3 Gunslinging 1 | . . 1 . . . Exploded . | . . . . . . Melee 1 | . . . 1 1 1 Uniques/NPCs Destroyed . | . . . . . . Combat | -11 -10 -9 -9 -9 -7 -------- Run | Yrd Mat Mat Sto Rec Fac Hostile Shots Fired 706 | . 85 129 50 2 440 Missed 283 | . 32 39 27 1 184 Damage Taken 5165 | . 558 1119 362 14 3112 Core 1113 | . 106 218 75 . 714 Absorbed by Shields . | . . . . . . Regen/Repaired (Parts) 90 | . . 69 21 . . Core Remaining (%) 61 | 100 57 . . 26 . Volleys Fired 302 | . 94 94 25 . 89 Largest 2 | . 2 2 2 . 2 Hottest 200 | . 200 112 121 . 96 Shots Fired 538 | . 174 178 47 . 139 Gun 494 | . 168 178 46 . 102 Cannon 37 | . . . . . 37 Launcher . | . . . . . . Special 7 | . 6 . 1 . . Kinetic 324 | . 102 99 . . 123 Thermal 214 | . 72 79 47 . 16 Explosive . | . . . . . . Electromagnetic . | . . . . . . Robot Hit Streak 32 | . 14 15 15 . 32 Robot Miss Streak 4 | . 4 4 4 . 4 Penetration Max 1 | . . . . . 1 Secondary Targets 5 | . 2 2 . . 1 Max Gunslinging Chain 1 | . 1 1 . . 1 Shots Hit Robots 445 | . 108 132 78 6 121 Core Hits 209 | . 48 50 31 4 76 Critical Kills . | . . . . . . Critical Parts Destroyed 2 | . 1 . . . 1 Critical Strikes 27 | . 6 4 12 . 5 Burn 16 | . 5 4 6 . 1 Destroy 2 | . 1 . . . 1 Blast 1 | . . . . . 1 Sever 8 | . . . 6 . 2 Melee Attacks 79 | . 3 4 51 6 15 Impact . | . . . . . . Slashing 64 | . . 2 41 6 15 Piercing . | . . . . . . Sneak Attacks 23 | . 1 2 14 5 1 Combat Hostiles 5 | . . . 2 3 . Follow-up Attacks . | . . . . . . Damage Inflicted 9322 | . 1314 2110 2524 465 2909 Guns 5669 | . 1217 2110 509 . 1833 Cannons 662 | . . . . . 662 Explosions 61 | . . . 61 . . Melee 2806 | . . . 1954 465 387 Ramming 28 | . 1 . . . 27 Kinetic 3880 | . 577 1081 . . 2222 Thermal 2547 | . 736 1029 509 . 273 Explosive 61 | . . . 61 . . Electromagnetic . | . . . . . . Impact . | . . . . . . Slashing 2806 | . . . 1954 465 387 Piercing . | . . . . . . Highest Corruption 5 | . . . . . 5 Average Corruption 2 | . . . . . 2 Corruption Purged . | . . . . . . Corruption Blocked . | . . . . . . Effects 20 | . . . . . 20 Message Errors 2 | . . . . . 2 Matter Fused 8 | . . . . . 8 Heat Flow Errors 1 | . . . . . 1 Energy Discharges 1 | . . . . . 1 Parts Fused 1 | . . . . . 1 Data Loss (minor) 1 | . . . . . 1 Data Loss (major) 2 | . . . . . 2 Alerts 1 | . . . . . 1 Weapon Failures 3 | . . . . . 3 Overload Shots . | . . . . . . Overflow Damage 272 | . . . 192 63 17 Projectiles . | . . . . . . Explosions . | . . . . . . Melee 272 | . . . 192 63 17 Knockbacks 4 | . . . . . 4 Impact 1 | . . . . . 1 Kinetic 3 | . . . . . 3 Secondary . | . . . . . . Self-Inflicted Damage 81 | . . . 69 . 12 Shots 1 | . . . 1 . . Rammed 5 | . 1 . . . 4 Targets Rammed 5 | . 1 . . . 4 Kicked . | . . . . . . Crushed . | . . . . . . Highest Temperature 388 | . 136 349 325 3 388 Average Temperature 79 | . 44 56 134 3 69 Received Heat Transfer 1293 | . 252 231 120 27 663 Effects 5 | . . 4 . . 1 Shutdowns 2 | . . 1 . . 1 Interference 3 | . . 3 . . . Siege Activations . | . . . . . . Robots Corrupted . | . . . . . . Combat Hostiles . | . . . . . . Parts Fried . | . . . . . . Impact Corruptions . | . . . . . . Robots Melted . | . . . . . . Combat Hostiles . | . . . . . . Parts Melted 15 | . 4 5 6 . . Heat Transferred 7341 | . 2457 2590 1628 . 666 Parts Sabotaged . | . . . . . . Parts Stolen . | . . . . . . Parts Stripped . | . . . . . . Power Chain Reactions . | . . . . . . Alert | -11 -10 -9 -9 -9 -7 ------- Run | Yrd Mat Mat Sto Rec Fac Peak Influence 830 | . 360 611 830 345 286 Initial 285 | . . 24 256 285 194 Average 281 | . 193 407 544 323 143 Maximum Alert Level 3 | . 1 2 3 1 1 Low Security (%) 37 | 100 45 7 . . 68 Level 1 36 | . 54 31 26 100 31 Level 2 24 | . . 60 60 . . Level 3 1 | . . . 12 . . Level 4 . | . . . . . . Level 5 . | . . . . . . High Security . | . . . . . . Max Security . | . . . . . . Squads Dispatched 15 | . 4 2 3 . 6 Investigation 3 | . 1 1 . . 1 Extermination 2 | . . . . . 2 Reinforcement 9 | . 3 1 2 . 3 Assault 1 | . . . 1 . . Garrison . | . . . . . . Intercept . | . . . . . . Searches Triggered . | . . . . . . Construction Impeded 1 | . . . 1 . . Haulers Reinforced . | . . . . . . Active Scanning Responses . | . . . . . . Cargo Convoy Interrupts 1 | . . . . . 1 Stealth | -11 -10 -9 -9 -9 -7 --------- Run | Yrd Mat Mat Sto Rec Fac Distress Signals 5 | . 1 4 . . . Communications Jammed . | . . . . . . Distress Signals . | . . . . . . Times Spotted 144 | . 44 41 25 1 33 Peak Tracking Total 7 | . 5 5 4 . 7 Tactical Retreats 11 | . 4 3 2 . 2 Traps | -11 -10 -9 -9 -9 -7 ------- Run | Yrd Mat Mat Sto Rec Fac Traps Triggered 5 | . 1 1 . . 3 Indirectly . | . . . . . . Trap Hack Attempts 103 | . 11 15 77 . . Triggered . | . . . . . . Disarmed 4 | . 3 1 . . . Reprogrammed 9 | . . . 9 . . Reused 2 | . . . 2 . . Traps Extracted . | . . . . . . Installed . | . . . . . . Triggered 3 | . . . 2 . 1 Machines | -11 -10 -9 -9 -9 -7 ---------- Run | Yrd Mat Mat Sto Rec Fac Machines Disabled 5 | . . 2 2 . 1 Max in Single Turn 2 | . . 1 2 . 1 Garrison Access 1 | . . . 1 . . Machines Repaired . | . . . . . . Machines Dismantled 2 | . . . 2 . . Machines Sabotaged . | . . . . . . Overloaded Fab Kills . | . . . . . . Hacking | -11 -10 -9 -9 -9 -7 --------- Run | Yrd Mat Mat Sto Rec Fac Machines Accessed 34 | . 6 4 14 3 7 Terminals 23 | . 5 3 10 1 4 Fabricators 1 | . . . . . 1 Repair Stations 3 | . 1 1 1 . . Recycling Units 6 | . . . 2 2 2 Scanalyzers . | . . . . . . Garrison Access 1 | . . . 1 . . Total Hacks 95 | . 26 14 30 7 18 Successful 50 | . 10 5 22 2 11 Failed 45 | . 16 9 8 5 7 Catastrophic 6 | . 3 . 2 . 1 Database Lockouts . | . . . . . . Manual 56 | . 17 10 17 . 12 Terminals 68 | . 23 11 21 2 11 Fabricators 2 | . . . . . 2 Repair Stations 8 | . 3 3 2 . . Recycling Units 15 | . . . 5 5 5 Scanalyzers . | . . . . . . Garrison Access 2 | . . . 2 . . Terminal Hacks 20 | . 6 2 8 . 4 Prototype ID Bank 4 | . 1 . 2 . 1 Open Door 4 | . . . 4 . . Level Access Points 1 | . . . . . 1 Terminal Index 4 | . 1 1 1 . 1 Alert Level 3 | . 1 1 . . 1 Unreport Threat 1 | . 1 . . . . Investigation Status 1 | . 1 . . . . Hauler Manifests 2 | . 1 . 1 . . Fabricator Hacks . | . . . . . . Repair Station Hacks 4 | . . 2 2 . . Scan Component 2 | . . 1 1 . . Repair 2 | . . 1 1 . . Recycling Unit Hacks 3 | . . . 1 2 . Retrieve Components 3 | . . . 1 2 . Scanalyzer . | . . . . . . Garrison Access Hacks 1 | . . . 1 . . Seal Access 1 | . . . 1 . . Unauthorized Hacks 22 | . 4 1 10 . 7 Terminals 14 | . 4 1 6 . 3 Assimilate 1 | . . . . . 1 Botnet 13 | . 4 1 6 . 2 Fabricators . | . . . . . . Repair Stations . | . . . . . . Recycling Units 8 | . . . 4 . 4 Monitor 4 | . . . 2 . 2 Reject 4 | . . . 2 . 2 Scanalyzers . | . . . . . . Garrison Access . | . . . . . . Data Cores Recovered 2 | . . . 1 . 1 Used 1 | . . . . . 1 Hacking Detections 26 | . 5 3 10 2 6 Full Trace Events 4 | . 1 1 . 1 1 Feedback Events . | . . . . . . Feedback Blocked . | . . . . . . Robot Schematics Acquired . | . . . . . . Robots Built . | . . . . . . Authchips . | . . . . . . Time . | . . . . . . Total Robot Build Rating . | . . . . . . Part Schematics Acquired . | . . . . . . Parts Built . | . . . . . . Authchips . | . . . . . . Time . | . . . . . . Total Part Build Rating . | . . . . . . Parts Repaired 2 | . . 1 1 . . Time 89 | . . 51 38 . . Parts Recycled . | . . . . . . Recycled Matter . | . . . . . . Retrieved Matter . | . . . . . . Retrieved Components 7 | . . . 4 3 . Parts Scanalyzed . | . . . . . . Part Schematics Acquired . | . . . . . . Parts Damaged . | . . . . . . Bothacking | -11 -10 -9 -9 -9 -7 ------------ Run | Yrd Mat Mat Sto Rec Fac Used RIF Installer . | . . . . . . Robots Hacked 9 | . 3 2 4 . . Non-combat 8 | . 2 2 4 . . Combat 1 | . 1 . . . . Robot Hacks Applied 11 | . 3 2 6 . . parse_system 2 | . 2 . . . . no_distress 9 | . 1 2 6 . . Relay Couplers Released . | . . . . . . Fabnet Peak Effective % . | . . . . . . Robots Rewired . | . . . . . . Allies Hacked 1 | . . . . . 1 Hacks Repelled . | . . . . . . Allies | -11 -10 -9 -9 -9 -7 -------- Run | Yrd Mat Mat Sto Rec Fac Total Allies 4 | . . . . . 4 Largest Group 4 | . . . . . 4 Highest-Rated Group 119 | . . . . . 119 Highest-Rated Ally 31 | . . . . . 31 Total Orders 22 | . . . . . 22 STAY 11 | . . . . . 11 ROAM 1 | . . . . . 1 FOLLOW 10 | . . . . . 10 Ally Attacks 7 | . . . . . 7 Total Damage 131 | . . . . . 131 Kills . | . . . . . . Allies Corrupted . | . . . . . . Allies Melted . | . . . . . . Intel | -11 -10 -9 -9 -9 -7 ------- Run | Yrd Mat Mat Sto Rec Fac Robot Analysis Total . | . . . . . . Derelict Logs Recovered . | . . . . . . Drone Launches . | . . . . . . Drone Recoveries . | . . . . . . Exploration | -11 -10 -9 -9 -9 -7 ------------- Run | Yrd Mat Mat Sto Rec Fac Turns Passed 5915 | 47 1245 1479 896 70 2178 Spaces Moved 5755 | 42 1157 1067 1089 139 2261 Core 32 | 1 5 1 . . 25 Treads 1010 | . 92 416 . . 502 Legs 105 | . 105 . . . . Wheels 152 | 41 111 . . . . Hover 390 | . 219 . . . 171 Flight 4066 | . 625 650 1089 139 1563 Fastest Speed 32 | 50 37 32 32 34 32 Average Speed 64 | 90 73 83 33 34 66 Slowest Speed 300 | 100 285 300 35 34 240 Overloaded Moves . | . . . . . . Propulsion Burnouts . | . . . . . . Robots Hopped 13 | . 1 1 3 . 8 Cave-ins Triggered . | . . . . . . Exploration Rate (%) 55 | 2 98 80 97 24 29 Regions Visited 5 Branch Regions 2 Pre-discovered Areas . | . . . . . . Known Exits Taken 1 | . . 1 . . . Unknown Exits Taken 4 | 1 1 . 1 1 . Scrap Searched . | . . . . . . Spaces Dug 3 | . . 1 2 . . Terrain Destroyed 24 | . 1 1 18 . 4 Melee 3 | . . 1 2 . . Projectile 5 | . 1 . . . 4 AOE 16 | . . . 16 . . Terrain Rammed . | . . . . . . Walls Destroyed . | . . . . . . Machines Disabled . | . . . . . . Actions | -11 -10 -9 -9 -9 -7 --------- Run | Yrd Mat Mat Sto Rec Fac Total 7273 | 48 1379 1483 1460 150 2753 Wait 711 | . 51 196 168 5 291 Move 5726 | 41 1154 1064 1082 138 2247 Hop 11 | . 1 1 3 . 6 Pick Up 38 | 2 9 14 4 . 9 Fast Attach 84 | 5 17 19 8 1 34 Attach 31 | . 8 8 3 . 12 Detach 31 | . 8 9 3 . 11 Swap 52 | . 4 23 17 . 8 Drop 87 | . 18 36 6 . 27 Fire 302 | . 94 94 25 . 89 Melee 79 | . 3 4 51 6 15 Ram 5 | . 1 . . . 4 Kick . | . . . . . . Crush . | . . . . . . Escape Stasis . | . . . . . . Rewire . | . . . . . . Trap 103 | . 11 15 77 . . Miscellaneous 13 | . . . 13 . . Route ------- -11/Scrapyard -10/Materials (discovered 5 exits: *Mat x3 / [*Min] / [*Sub]) -9/Materials (discovered 5 exits: *Mat x2 / [*Min x2] / *Sto) -9/Storage (discovered 2 exits: *Mat / *Rec) -9/Recycling -7/Factory (discovered 4 exits: *Fac x4) History --------- Turn | Location | Event 27 | -11/Scrapyard | Discovered new exit (range 15) 48 | -11/Scrapyard | Entered Materials 248 | -10/Materials | Destroyed 10 combat bots 326 | -10/Materials | Discovered new exit (range 8) 476 | -10/Materials | Discovered new exit (range 8) 605 | -10/Materials | Build established: Mutant 909 | -10/Materials | Discovered new exit (range 15) 1194 | -10/Materials | Discovered new exit (range 15) 1262 | -10/Materials | Discovered new exit (range 11) 1293 | -10/Materials | Entered another Materials area 1293 | -9/Materials | Evolved 2 slots: Utility x2 1447 | -9/Materials | Build established: Hacker-Mutant 1672 | -9/Materials | Discovered new exit (range 8) 1984 | -9/Materials | Build established: Scavenger-Mutant 2015 | -9/Materials | Discovered new exit (range 17) 2636 | -9/Materials | Repaired Imp. Medium Laser 2703 | -9/Materials | Discovered new exit (range 16) 2716 | -9/Materials | Discovered new exit (range 15) 2721 | -9/Materials | Core integrity fell below 50% 2729 | -9/Materials | Build established: Sprinter 2750 | -9/Materials | Discovered new exit (range 16) 2763 | -9/Materials | Identified exit to Materials 2771 | -9/Materials | Identified exit to Storage 2772 | -9/Materials | Entered Storage 3093 | -9/Storage | Discovered exit to Materials (range 8) 3190 | -9/Storage | Repaired Cesium-ion Thruster 3572 | -9/Storage | First assault squad dispatched 3579 | -9/Storage | Build established: Mutant 3667 | -9/Storage | Used back door to open Recycling access 3667 | -9/Storage | Discovered new exit (range 5) 3668 | -9/Storage | Entered Recycling 3736 | -9/Recycling | Discovered new exit (range 7) 3738 | -9/Recycling | Entered Factory 3738 | -7/Factory | Evolved 4 slots: Utility x4 4027 | -7/Factory | Build established: Scavenger-Mutant 4141 | -7/Factory | Lost 4 parts (2n1u1w) 4788 | -7/Factory | Core integrity fell below 50% 4828 | -7/Factory | Destroyed 7 combat bots 5265 | -7/Factory | Identified exit to Factory 5303 | -7/Factory | Cargo convoy interrupted 5341 | -7/Factory | Core integrity fell below 20% 5790 | -7/Factory | Build established: Mutant 5916 | -7/Factory | Destroyed by X-67 Chaingunner with Heavy Machine Gun Last Messages --------------- 05882_ Penetrated by Slug. 05883_ >> MONITOR: Recycling Unit F006 accepting Aluminum Leg (57%). 05886_ Hvy. Armor Plating destroyed. 05886_ >> MONITOR: Recycling Unit F006 accepting Lgt. Nuclear Core (84%). 05887_ Lgt. Treads destroyed. 05888_ System corrupted: Prc. Assault Rifle jammed. 05888_ X-67 Chaingunner destroyed. 05889_ >> MONITOR: Recycling Unit F006 accepting Aluminum Leg (65%). 05891_ Penetrated by Slug. 05891_ Hvy. Armor Plating destroyed. 05892_ >> MONITOR: Recycling Unit F006 accepting Arm. Treads (62%). 05898_ System corrupted: Matter fused (-7). 05902_ X-67 Chaingunner suffers critical hit (Blast). 05902_ X-67 Chaingunner knocked back. 05902_ Imp. Targeting Computer destroyed. 05910_ Penetrated by Slug. 05910_ Imp. Targeting Computer destroyed. 05914_ System corrupted: Substantial component data lost. 05915_ Lgt. Treads destroyed. 05915_ Knocked back. Map ----- +----------------------------------------------------+ | ?????????????????????????????# " " " | | ?????????????????????????????# " " " | | ??????????????????????????#?## " " " | | ?????????????????????????#??## " " " """ | | ?????????????????????????????# " " " R" | | ??????????????????????????#?## " " " """ | | ?????????????????????????????# | | ??????????????????????????##?############ | | ???????????????????????????############## | | ?????????????????????????#?############ | | ????????????????#?????##?############## | | ?????????????? ? ?? ######?##?####### | | ?????????????#? ?? ? # ? ####### | | ?????????????# ??? # ####### | | ???????????#?#? # ######### | | ?????????#???#? ? # ######### | | ????????????#??? # ##### # | | ??????????##?# ? # ##### | | ????????#?####? ?? ? ##### # | | ??????#??###?# # ###### ## | | ???????###########+######+############ ## | | ???????# # ####|## | | ?????#?# % # ! + !!=!* | | ?????#?# <% [%= H % # #### ## | | ???????# % ! x % % # ####=## | | ????#??# @ % # #### ## | | ???????####+##########;# % ; #### ## | | ?????????? ? ###### # |#### ## | | ?????#??? ? ###### # | #### | | ???????? ? ? ###### # #### | | ????#????? ?? ? ###### ######### | | ???????? ?"?" ""? ###### ######### | | ?????#????""" """ ?##### =######### | | ???????? ?""" """ ###### ######### | | ????????? ?###### ######### | | ??????? ????" """?###### | | ????????? ?"? ?"" ###### | | ??????????"???""" ###### """ """ """ """ | | ????????? ###### """ """ """ """ | | ?????????############### """ """ """ """ | | ??????????# # | | ??????????# # = | | ??????????# # | | ?????????## # | | ?????????## + | | ?????????## # | | ??????????# # | | ??????????# # """ """ "" "" | | ??????????# # """ """ "" " | | ??????????# # """ """ """ " | +----------------------------------------------------+ Best States ------------- Heat Dissipation 61 Energy Generation 18 Energy Capacity 310 Matter Stores 300 Matter Capacity 300 Sight Range 18 Robot Scan Range 15 Terrain Scan Range 16 Terrain Scan Density 210 Additional Mass Support 12 Armor Coverage 1200 Evasion (%) 71 Targeting Accuracy 18 Melee Accuracy 5 Target Analysis 5 Recoil Reduction 2 Salvage Targeting 1 Offensive Hacking 20 Item Schematics ----------------- None Robot Schematics ------------------ None Fabricated ------------ Nothing Alien Tech Used ----------------- None Achievements -------------- None Challenges ------------ None Game ------ Seed XenonSeismicFalx Manual? 0 Play Time 01:11:31 Cumulative 104.0 hours Start 2024.06.28 @ 12:42:27 End 2024.06.28 @ 14:06:06 Sessions 1 Manual Loads 0 Difficulty Rogue Special Mode None Game No. 119 Rogue 113 Adventurer 6 Explorer 0 Win Type - Total 1 Types 1/0/0/0/0/0/0/0/0 Lore% 37 Gallery% 58 Achievement% 42 Wizard Run 0 Options --------- Layout 0 ASCII 0 Keyboard 1 Movement Numpad Keybinds 0 Fullscreen 0 Font 14/Smallcaps Map View 76x50 Zoom Use 0% Tactical HUD 1 Map Filters NONE Filters NONE Steam 1 RUN: 56ef034d-5c01-462e-8c18-6a236802c1a5